fUSD/lending_fUSD_20240426
["ID","MTS","AMOUNT","RATE_DAILY","PERIOD"]
[323705711,1714169446513,-500.0,0.00012875,2]
[323705712,1714169446523,-500.0,0.00012875,2]
[323705713,1714169446532,-500.0,0.00012875,2]
[323705714,1714169446542,-500.0,0.00012875,2]
[323705715,1714169446551,-500.0,0.00012875,2]
[323705716,1714169446560,-500.0,0.00012875,2]
[323705717,1714169446570,-500.0,0.00012875,2]
[323705718,1714169446579,-500.0,0.00012875,2]
[323705719,1714169446588,-202.22,0.00012875,2]
[323705720,1714169446598,-500.0,0.00012875,2]
[323705721,1714169446608,-500.0,0.00012875,2]
[323705722,1714169446618,-500.0,0.00012875,2]
[323705723,1714169446627,-500.0,0.00012875,2]
[323705724,1714169446636,-500.0,0.00012875,2]
[323705725,1714169446646,-846.61,0.00012875,2]
[323705726,1714169446655,-533.25,0.00012875,2]
[323705727,1714169446664,-511.31,0.00012875,2]
[323705728,1714169446674,-500.0,0.00012875,2]
[323705729,1714169446683,-500.0,0.00012875,2]
[323705730,1714169446693,-500.0,0.00012875,2]
[323705731,1714169446701,-291.38,0.00012875,2]
[323705732,1714169446711,-500.0,0.00012875,2]
[323705733,1714169446721,-294.28,0.00012875,2]
[323705734,1714169446730,-500.0,0.00012875,2]
[323705735,1714169446739,-500.0,0.00012875,2]
[323705736,1714169446748,-753.79,0.00012875,2]
[323705737,1714169446757,-409.64578148,0.00012875,2]
[323705738,1714169446767,-500.0,0.00012875,2]
[323705739,1714169446777,-500.0,0.00012875,2]
[323705740,1714169446787,-500.0,0.00012875,2]
[323705741,1714169446796,-500.0,0.00012875,2]
[323705742,1714169446806,-500.0,0.00012875,2]
[323705743,1714169446815,-500.0,0.00012875,2]
[323705744,1714169446824,-564.55,0.00012875,2]
[323705745,1714169446834,-500.0,0.00012875,2]
[323705746,1714169446843,-500.0,0.00012875,2]
[323705747,1714169446852,-500.0,0.00012875,2]
[323705748,1714169446861,-807.08,0.00012875,2]
[323705749,1714169446871,-500.0,0.00012875,2]
[323705750,1714169446879,-500.0,0.00012875,2]
[323705751,1714169446888,-500.0,0.00012875,2]
[323705752,1714169446898,-500.0,0.00012875,2]
[323705753,1714169446908,-663.39,0.00012875,2]
[323705754,1714169446917,-500.0,0.00012875,2]
[323705755,1714169446926,-394.38,0.00012876,2]
[323705756,1714169446936,-500.0,0.00012876,2]
[323705757,1714169446945,-500.0,0.00012876,2]
[323705758,1714169446954,-500.0,0.00012876,2]
[323705759,1714169446964,-500.0,0.00012876,2]
[323705760,1714169446974,-500.0,0.00012876,2]
[323705761,1714169446983,-500.0,0.00012876,2]
[323705762,1714169446992,-207.23,0.00012876,2]
[323705763,1714169447002,-365.97088217,0.000129,2]
[323705764,1714169447011,-3393.14657861,0.000129,2]
[323705765,1714169447020,-3393.14657859,0.000129,2]
[323705766,1714169447029,-95131.49343769,0.000129,2]
[323705767,1714169447038,-3393.14657859,0.000129,2]
[323705768,1714169447047,-3393.14657859,0.000129,2]
[323705769,1714169447057,-3393.14657859,0.000129,2]
[323705770,1714169447066,-3393.14657859,0.000129,2]
[323705771,1714169447075,-3393.14657859,0.000129,2]
[323705772,1714169447085,-3393.14657859,0.000129,2]
[323705773,1714169447094,-565.5244298,0.000129,2]
[323705774,1714169447103,-565.52442976,0.000129,2]
[323705775,1714169447113,-565.52442976,0.000129,2]
[323705776,1714169447122,-565.52442976,0.000129,2]
[323705777,1714169447132,-565.52442976,0.000129,2]
[323705778,1714169447141,-565.52442976,0.000129,2]
[323705779,1714169447150,-565.52442976,0.000129,2]
[323705780,1714169447159,-565.52442976,0.000129,2]
[323705781,1714169447168,-376.33794018,0.000129,2]
[323705782,1714169447177,-27793.51670251,0.000129,2]
[323705783,1714169447186,-197.85840028,0.000129,2]
[323705784,1714169447195,-2741.96262221,0.000129,2]
[323705785,1714169447205,-164.42033752,0.000129,2]
[323705786,1714169447215,-166.72855095,0.000129,2]
[323705787,1714169447224,-231.63,0.00012926,2]
[323705788,1714169447235,-550.0,0.0001297,2]
[323705789,1714169447245,-500.0,0.00012985,2]
[323705790,1714169447255,-400.0,0.00012994,2]
[323705791,1714169447264,-500.0,0.00012995,2]
[323705792,1714169447273,-578.47,0.00012995,2]
[323705793,1714169447282,-500.0,0.00012995,2]
[323705794,1714169447291,-500.0,0.00012995,2]
[323705795,1714169447301,-500.0,0.00012995,2]
[323705796,1714169447311,-500.0,0.00012995,2]
[323705797,1714169447321,-500.0,0.00012995,2]
[323705798,1714169447332,-500.0,0.00012995,2]
[323705799,1714169447341,-500.0,0.00012995,2]
[323705800,1714169447350,-6.02807021,0.00012995,2]
[323705801,1714169447377,-301.14837519,0.00012995,2]
[323705802,1714169447462,-192.8235546,0.00012995,2]
[323705803,1714169447472,-92.26844518,0.00012995,2]
[323705804,1714169447493,-407.73155482,0.00012995,2]
[323705805,1714169447502,-262.25935508,0.00012999,2]
[323705806,1714169447511,-500.0,0.00012999,2]
[323705807,1714169447521,-500.0,0.00012999,2]
[323705808,1714169447530,-500.0,0.00012999,2]
[323705809,1714169447539,-500.0,0.00012999,2]
[323705810,1714169447548,-500.0,0.00012999,2]
[323705811,1714169447557,-467.36,0.00012999,2]
[323705812,1714169447566,-3188400.81218755,0.00013,2]
[323705813,1714169447578,-1960.0,0.00013,2]
[323705814,1714169447588,-6434.3,0.00013,2]
[323705815,1714169447607,-257.59616578,0.00013,2]
[323705816,1714169447618,-1620.000003,0.00013,2]
[323705817,1714169447637,-370.262,0.00013,2]
[323705818,1714169447649,-254.5805,0.00013,2]
[323705819,1714169447660,-10013.10916582,0.00013,2]
[323705820,1714169447706,-333.4495122,0.00011779,2]
[323705821,1714169447719,-166.5504878,0.00011779,2]
[323705822,1714169447727,-2779.44951211,0.00013,2]
[323705823,1714169447738,-1377.61890443,0.00013,2]
[323705824,1714169447766,-13311.09075898,0.00013,2]
[323705825,1714169447778,-9136.80152,0.00013,2]
[323705826,1714169447790,-7102.69264074,0.00013,2]
[323705827,1714169448198,-500.0,0.00011779,2]
[323705828,1714169448209,-143.94390684,0.00011779,2]
[323705829,1714169448221,-366.87609316,0.00011779,2]
[323705830,1714169448231,-558.62985681,0.00011898,2]
[323705831,1714169448246,-151.60572898,0.00011898,2]
[323705832,1714169448255,-275.54426902,0.00013,2]
[323705833,1714169448268,-1502.81579274,0.00013,2]
[323705834,1714169448280,-8900.56235922,0.00013,2]
[323705835,1714169448291,-258.80083264,0.00013,2]
[323705836,1714169448306,-4494.67146496,0.00013,2]
[323705837,1714169448318,-6762.50845146,0.00013,2]
[323705838,1714169448328,-678.25000005,0.00013,2]
[323705839,1714169448339,-322.4773321,0.00013,2]
[323705840,1714169448350,-328.04999985,0.00013,2]
[323705841,1714169448373,-2633.6362237,0.00013,2]
[323705842,1714169448386,-1003.24613563,0.00013,2]
[323705843,1714169448397,-300.0,0.00013,2]
[323705844,1714169448410,-840.00000001,0.00013,2]
[323705845,1714169448421,-500.0,0.00013,2]
[323705846,1714169448436,-2013.4999997,0.00013,2]
[323705847,1714169448458,-7233.0,0.00013,2]
[323705848,1714169448469,-1408.09787454,0.00013,2]
[323705849,1714169448481,-4704.000003,0.00013,2]
[323705850,1714169448493,-617.2666498,0.00013,2]
[323705851,1714169448504,-600.0000055,0.00013,2]
[323705852,1714169448533,-344.10978337,0.00011779,2]
[323705853,1714169448544,-155.89021663,0.00011779,2]
[323705854,1714169448554,-1125.4638706,0.00013,2]
[323705855,1714169448566,-503.99410468,0.00013,2]
[323705856,1714169448577,-1407.0,0.00013,2]
[323705857,1714169448849,-228.82,0.00011779,2]
[323705858,1714169448858,-500.0,0.00011779,2]
[323705859,1714169448867,-156.73099762,0.00012053,2]
[323705860,1714169448887,-343.26900238,0.00012053,2]
[323705861,1714169448896,-104.57801087,0.00012053,2]
[323705862,1714169448908,-395.42198913,0.00012053,2]
[323705863,1714169448917,-226.85,0.00012327,2]
[323705864,1714169448927,-720.61432192,0.000129,2]
[323705865,1714169448936,-55869.23536336,0.00013,2]
[323705866,1714169448947,-53231.14608123,0.00013,2]
[323705867,1714169448959,-4468.5661845,0.00013,2]
[323705868,1714169448970,-4995.0,0.00013,2]
[323705869,1714169448982,-2500.0,0.00013,2]
[323705870,1714169448992,-1374.97521,0.00013,2]
[323705871,1714169449004,-6293.32144232,0.00013,2]
[323705872,1714169449015,-36590.05920807,0.00013,2]
[323705873,1714169449026,-10626.67261,0.00013,2]
[323705874,1714169449038,-15244.77312,0.00013,2]
[323705875,1714169449049,-982.5,0.00013,2]
[323705876,1714169449060,-8760.27938769,0.00013,2]
[323705877,1714169449081,-661.85250609,0.00013,2]
[323705878,1714169449092,-11026.5985078,0.00013,2]
[323705879,1714169449104,-32822.62256101,0.00013,2]
[323705880,1714169449115,-5780.52058232,0.00013,2]
[323705881,1714169449126,-5700.0,0.00013,2]
[323705882,1714169449329,-3975.80907621,0.00013,2]
[323705883,1714169449344,-800.8,0.00013,2]
[323705884,1714169449355,-3239.40199926,0.00013,2]
[323705885,1714169449368,-36813.85625513,0.00013,2]
[323705886,1714169449383,-683.88504015,0.00013,2]
[323705887,1714169449395,-24709.47129042,0.00013,2]
[323705888,1714169449406,-396.87088712,0.00013,2]
[323705889,1714169449417,-626.10924374,0.00013,2]
[323705890,1714169449428,-2287.15044994,0.00013,2]
[323705951,1714170632246,-234.44,9.518e-05,2]
[323705952,1714170632258,-155.0,0.000109,2]
[323705953,1714170632268,-150.0,0.00011349,2]
[323705954,1714170632277,-772.59,0.00011356,2]
[323705955,1714170632287,-240.0,0.0001136,2]
[323705956,1714170632297,-175.07,0.00011387,2]
[323705957,1714170632307,-150.0,0.00011429,2]
[323705958,1714170632316,-23900.0,0.0001143,2]
[323705959,1714170632326,-160.0,0.00011436,2]
[323705960,1714170632335,-530.62,0.00011446,2]
[323705961,1714170632344,-6411.21,0.0001176,2]
[323705962,1714170632353,-501.20504773,0.00011779,2]
[323705963,1714170632362,-234.44,0.00011782,2]
[323705964,1714170632372,-500.0,0.00011889,2]
[323705965,1714170632381,-500.0,0.00011889,2]
[323705966,1714170632390,-500.0,0.00011889,2]
[323705967,1714170632399,-331.7,0.00011889,2]
[323705968,1714170632408,-500.0,0.00011889,2]
[323705969,1714170632417,-500.0,0.00011889,2]
[323705970,1714170632426,-500.0,0.00011889,2]
[323705971,1714170632435,-307.14,0.00011889,2]
[323705972,1714170632444,-304.6,0.00011889,2]
[323705973,1714170632453,-500.0,0.00011889,2]
[323705974,1714170632462,-500.0,0.00011889,2]
[323705975,1714170632471,-500.0,0.00011889,2]
[323705976,1714170632481,-500.0,0.00011889,2]
[323705977,1714170632490,-500.0,0.00011889,2]
[323705978,1714170632500,-500.0,0.00011889,2]
[323705979,1714170632509,-500.0,0.00011889,2]
[323705980,1714170632518,-500.0,0.00011889,2]
[323705981,1714170632527,-500.0,0.00011889,2]
[323705982,1714170632536,-500.0,0.00011889,2]
[323705983,1714170632545,-500.0,0.00011889,2]
[323705984,1714170632554,-10000.0,0.00011953,2]
[323705985,1714170632564,-1748.09424184,0.00012,2]
[323705986,1714170632573,-409.17053992,0.00012,2]
[323705987,1714170632582,-155.0,0.00012052,2]
[323705989,1714170632591,-5000.0,0.00012162,2]
[323705991,1714170632600,-500.0,0.00012163,2]
[323705993,1714170632609,-500.0,0.00012163,2]
[323705995,1714170632618,-500.0,0.00012163,2]
[323705997,1714170632627,-500.0,0.00012163,2]
[323705999,1714170632636,-500.0,0.00012163,2]
[323706002,1714170632645,-500.0,0.00012163,2]
[323706003,1714170632654,-500.0,0.00012163,2]
[323706004,1714170632663,-500.0,0.00012163,2]
[323706005,1714170632673,-500.0,0.00012163,2]
[323706006,1714170632682,-500.0,0.00012163,2]
[323706007,1714170632691,-500.0,0.00012163,2]
[323706008,1714170632701,-500.0,0.00012163,2]
[323706009,1714170632710,-500.0,0.00012163,2]
[323706010,1714170632719,-500.0,0.00012163,2]
[323706011,1714170632728,-7500.0,0.00012237,2]
[323706012,1714170632737,-805.4,0.00012327,2]
[323706013,1714170632750,-45.74036213,0.00012328,2]
[323706014,1714170632763,-465.25963787,0.00012328,2]
[323706015,1714170632772,-500.0,0.00012336,2]
[323706016,1714170632782,-500.0,0.00012336,2]
[323706017,1714170632791,-500.0,0.00012336,2]
[323706018,1714170632800,-399.02954707,0.00012336,2]
[323706019,1714170632813,-100.97045293,0.00012336,2]
[323706020,1714170632825,-500.0,0.00012336,2]
[323706021,1714170632835,-367.7,0.00012336,2]
[323706022,1714170632844,-489.66,0.00012336,2]
[323706023,1714170632854,-591.09725078,0.00012336,2]
[323706024,1714170632866,-43.62274922,0.00012336,2]
[323706025,1714170632875,-500.0,0.00012336,2]
[323706026,1714170632884,-500.0,0.00012336,2]
[323706027,1714170632894,-504.37602568,0.00012336,2]
[323706028,1714170632918,-933.06397432,0.00012336,2]
[323706029,1714170632928,-500.0,0.00012336,2]
[323706030,1714170632938,-500.0,0.00012336,2]
[323706031,1714170632947,-500.0,0.00012336,2]
[323706032,1714170632957,-500.0,0.00012336,2]
[323706033,1714170632967,-500.0,0.00012336,2]
[323706034,1714170632976,-500.0,0.00012336,2]
[323706035,1714170632985,-539.96,0.00012336,2]
[323706036,1714170632994,-500.0,0.00012336,2]
[323706037,1714170633006,-500.0,0.00012336,2]
[323706038,1714170633016,-500.0,0.00012336,2]
[323706039,1714170633025,-500.0,0.00012336,2]
[323706040,1714170633035,-512.19,0.00012336,2]
[323706041,1714170633044,-500.0,0.00012336,2]
[323706042,1714170633055,-500.0,0.00012336,2]
[323706043,1714170633064,-500.0,0.00012336,2]
[323706044,1714170633074,-458.17765135,0.00012336,2]
[323706045,1714170633084,-500.0,0.00012336,2]
[323706046,1714170633093,-324.43940648,0.00012336,2]
[323706047,1714170633105,-175.56059352,0.00012336,2]
[323706048,1714170633115,-255.62453616,0.00012336,2]
[323706049,1714170633136,-201.13546384,0.00012336,2]
[323706050,1714170633145,-685.46,0.00012336,2]
[323706051,1714170633154,-385.64453616,0.00012336,2]
[323706054,1714170638543,-114.35546384,0.00012336,2]
[323706055,1714170638552,-298.26603332,0.00012336,2]
[323706056,1714170638597,-201.73396668,0.00012336,2]
[323706057,1714170638606,-500.0,0.00012336,2]
[323706058,1714170638615,-500.0,0.00012336,2]
[323706059,1714170638624,-788.37,0.00012336,2]
[323706060,1714170638633,-500.0,0.00012336,2]
[323706061,1714170638642,-523.55931712,0.00012336,2]
[323706063,1714170638654,-258.89068288,0.00012336,2]
[323706065,1714170638664,-500.0,0.00012336,2]
[323706067,1714170638673,-500.0,0.00012336,2]
[323706069,1714170638682,-500.0,0.00012336,2]
[323706071,1714170638691,-500.0,0.00012336,2]
[323706072,1714170638700,-500.0,0.00012336,2]
[323706073,1714170638709,-500.0,0.00012336,2]
[323706074,1714170638718,-500.0,0.00012336,2]
[323706075,1714170638727,-500.0,0.00012336,2]
[323706076,1714170638735,-500.0,0.00012336,2]
[323706077,1714170638745,-500.0,0.00012336,2]
[323706078,1714170638759,-500.0,0.00012336,2]
[323706079,1714170638768,-500.0,0.00012336,2]
[323706080,1714170638777,-500.0,0.00012336,2]
[323706081,1714170638787,-500.0,0.00012336,2]
[323706082,1714170638796,-500.0,0.00012336,2]
[323706083,1714170638805,-500.0,0.00012336,2]
[323706084,1714170638814,-500.0,0.00012336,2]
[323706085,1714170638826,-810.32,0.00012336,2]
[323706086,1714170638835,-941.28931712,0.00012336,2]
[323706089,1714170640443,-927.38068288,0.00012336,2]
[323706090,1714170640453,-731.26,0.00012336,2]
[323706091,1714170640462,-500.0,0.00012336,2]
[323706092,1714170640471,-217.84759685,0.00012336,2]
[323706093,1714170640484,-282.15240315,0.00012336,2]
[323706094,1714170640492,-606.89,0.00012336,2]
[323706095,1714170640502,-500.0,0.00012336,2]
[323706096,1714170640512,-500.0,0.00012336,2]
[323706097,1714170640521,-500.0,0.00012336,2]
[323706098,1714170640530,-500.0,0.00012336,2]
[323706099,1714170640540,-706.2,0.00012336,2]
[323706100,1714170640549,-500.0,0.00012336,2]
[323706101,1714170640559,-500.0,0.00012336,2]
[323706102,1714170640568,-500.0,0.00012336,2]
[323706103,1714170640578,-526.18,0.00012336,2]
[323706104,1714170640587,-500.0,0.00012336,2]
[323706105,1714170640596,-580.47,0.00012336,2]
[323706106,1714170640605,-500.0,0.00012336,2]
[323706107,1714170640615,-500.0,0.00012336,2]
[323706108,1714170640624,-500.0,0.00012336,2]
[323706109,1714170640633,-500.0,0.00012336,2]
[323706110,1714170640642,-500.0,0.00012336,2]
[323706111,1714170640652,-500.0,0.00012336,2]
[323706112,1714170640662,-500.0,0.00012336,2]
[323706113,1714170640671,-563.28,0.00012336,2]
[323706114,1714170640680,-500.0,0.00012336,2]
[323706115,1714170640689,-500.0,0.00012336,2]
[323706116,1714170640699,-500.0,0.00012336,2]
[323706117,1714170640709,-500.0,0.00012336,2]
[323706118,1714170640718,-615.3,0.00012336,2]
[323706119,1714170640728,-500.0,0.00012336,2]
[323706120,1714170640738,-500.0,0.00012336,2]
[323706121,1714170640752,-194291.7103,0.00012337,2]
[323706122,1714170640761,-500.0,0.00012437,2]
[323706123,1714170640771,-500.0,0.00012437,2]
[323706124,1714170640780,-500.0,0.00012437,2]
[323706125,1714170640791,-500.0,0.00012437,2]
[323706126,1714170640801,-500.0,0.00012437,2]
[323706128,1714170640810,-500.0,0.00012437,2]
[323706129,1714170640819,-500.0,0.00012437,2]
[323706130,1714170640829,-500.0,0.00012437,2]
[323706131,1714170640839,-500.0,0.00012437,2]
[323706132,1714170640848,-550.5,0.00012437,2]
[323706133,1714170640857,-500.0,0.00012437,2]
[323706134,1714170640866,-150.0,0.00012571,2]
[323706135,1714170640875,-158.54,0.0001261,2]
[323706136,1714170640884,-500.0,0.0001261,2]
[323706137,1714170640893,-500.0,0.0001261,2]
[323706138,1714170640903,-500.0,0.0001261,2]
[323706139,1714170640912,-500.0,0.0001261,2]
[323706140,1714170640921,-210.07,0.0001261,2]
[323706141,1714170640930,-500.0,0.0001261,2]
[323706142,1714170640939,-500.0,0.0001261,2]
[323706143,1714170640948,-500.0,0.0001261,2]
[323706144,1714170640957,-500.0,0.0001261,2]
[323706145,1714170640966,-500.0,0.0001261,2]
[323706146,1714170640976,-500.0,0.0001261,2]
[323706147,1714170640985,-500.0,0.0001261,2]
[323706148,1714170640994,-500.0,0.0001261,2]
[323706149,1714170641006,-409.12,0.0001261,2]
[323706150,1714170641015,-500.0,0.0001261,2]
[323706151,1714170641024,-500.0,0.0001261,2]
[323706152,1714170641033,-500.0,0.0001261,2]
[323706153,1714170641043,-500.0,0.0001261,2]
[323706154,1714170641052,-685.46,0.0001261,2]
[323706155,1714170641061,-500.0,0.0001261,2]
[323706156,1714170641070,-500.0,0.0001261,2]
[323706157,1714170641079,-500.0,0.0001261,2]
[323706158,1714170641089,-500.0,0.0001261,2]
[323706159,1714170641098,-788.37,0.0001261,2]
[323706160,1714170641107,-782.45,0.0001261,2]
[323706161,1714170641116,-500.0,0.0001261,2]
[323706162,1714170641125,-500.0,0.0001261,2]
[323706163,1714170641134,-500.0,0.0001261,2]
[323706164,1714170641143,-500.0,0.0001261,2]
[323706165,1714170641152,-500.0,0.0001261,2]
[323706166,1714170641161,-500.0,0.0001261,2]
[323706167,1714170641171,-500.0,0.0001261,2]
[323706168,1714170641180,-500.0,0.0001261,2]
[323706169,1714170641189,-374.8,0.0001261,2]
[323706170,1714170641199,-500.0,0.0001261,2]
[323706171,1714170641208,-500.0,0.0001261,2]
[323706172,1714170641217,-500.0,0.0001261,2]
[323706173,1714170641227,-645.568,0.0001261,2]
[323706174,1714170641236,-500.0,0.0001261,2]
[323706175,1714170641246,-500.0,0.0001261,2]
[323706176,1714170641257,-810.32,0.0001261,2]
[323706177,1714170641266,-1868.67,0.0001261,2]
[323706178,1714170641276,-731.26,0.0001261,2]
[323706179,1714170641286,-500.0,0.0001261,2]
[323706180,1714170641296,-606.89,0.0001261,2]
[323706181,1714170641305,-500.0,0.0001261,2]
[323706182,1714170641316,-500.0,0.0001261,2]
[323706183,1714170641326,-500.0,0.0001261,2]
[323706184,1714170641336,-706.2,0.0001261,2]
[323706185,1714170641345,-500.0,0.0001261,2]
[323706186,1714170641355,-500.0,0.0001261,2]
[323706187,1714170641364,-500.0,0.0001261,2]
[323706188,1714170641373,-526.18,0.0001261,2]
[323706189,1714170641383,-500.0,0.0001261,2]
[323706190,1714170641392,-580.47,0.0001261,2]
[323706191,1714170641401,-500.0,0.0001261,2]
[323706192,1714170641410,-500.0,0.0001261,2]
[323706193,1714170641420,-500.0,0.0001261,2]
[323706194,1714170641430,-245.5,0.0001261,2]
[323706195,1714170641441,-500.0,0.0001261,2]
[323706196,1714170641451,-615.3,0.0001261,2]
[323706197,1714170641461,-500.0,0.0001261,2]
[323706198,1714170641471,-500.0,0.00012711,2]
[323706199,1714170641480,-500.0,0.00012711,2]
[323706200,1714170641490,-500.0,0.00012711,2]
[323706201,1714170641498,-500.0,0.00012711,2]
[323706202,1714170641510,-500.0,0.00012711,2]
[323706203,1714170641519,-500.0,0.00012711,2]
[323706204,1714170641530,-500.0,0.00012711,2]
[323706205,1714170641540,-500.0,0.00012711,2]
[323706206,1714170641549,-500.0,0.00012711,2]
[323706207,1714170641559,-772.59,0.00012776,2]
[323706208,1714170641568,-240.0,0.0001278,2]
[323706209,1714170641577,-160.0,0.00012866,2]
[323706210,1714170641587,-57270.46716914,0.00012874,2]
[323706211,1714170641596,-500.0,0.00012884,2]
[323706212,1714170641606,-500.0,0.00012884,2]
[323706213,1714170641614,-500.0,0.00012884,2]
[323706214,1714170641624,-500.0,0.00012884,2]
[323706215,1714170641633,-500.0,0.00012884,2]
[323706216,1714170641644,-500.0,0.00012884,2]
[323706217,1714170641653,-500.0,0.00012884,2]
[323706218,1714170641663,-500.0,0.00012884,2]
[323706219,1714170641672,-500.0,0.00012884,2]
[323706220,1714170641681,-500.0,0.00012884,2]
[323706221,1714170641690,-500.0,0.00012884,2]
[323706222,1714170641699,-500.0,0.00012884,2]
[323706223,1714170641708,-369.89,0.00012884,2]
[323706224,1714170641718,-500.0,0.00012884,2]
[323706225,1714170641727,-630.73,0.00012884,2]
[323706226,1714170641735,-685.46,0.00012884,2]
[323706227,1714170641747,-500.0,0.00012884,2]
[323706228,1714170641758,-500.0,0.00012884,2]
[323706229,1714170641767,-500.0,0.00012884,2]
[323706230,1714170641776,-500.0,0.00012884,2]
[323706231,1714170641786,-788.37,0.00012884,2]
[323706232,1714170641795,-782.45,0.00012884,2]
[323706233,1714170641804,-539.9,0.00012884,2]
[323706234,1714170641815,-500.0,0.00012884,2]
[323706235,1714170641824,-500.0,0.00012884,2]
[323706236,1714170641834,-500.0,0.00012884,2]
[323706237,1714170641844,-500.0,0.00012884,2]
[323706238,1714170641853,-500.0,0.00012884,2]
[323706239,1714170641862,-500.0,0.00012884,2]
[323706240,1714170641872,-294.28,0.00012884,2]
[323706241,1714170641881,-511.31,0.00012884,2]
[323706242,1714170641890,-500.0,0.00012884,2]
[323706243,1714170641899,-290.22933342,0.00012884,2]
[323706244,1714170641909,-500.0,0.00012884,2]
[323706245,1714170641918,-152.06578148,0.00012884,2]
[323706246,1714170641927,-810.32,0.00012884,2]
[323706247,1714170641936,-1868.67,0.00012884,2]
[323706248,1714170641945,-731.26,0.00012884,2]
[323706249,1714170641955,-500.0,0.00012884,2]
[323706250,1714170641965,-606.89,0.00012884,2]
[323706251,1714170641974,-503.9,0.00012884,2]
[323706252,1714170641983,-500.0,0.00012884,2]
[323706253,1714170641992,-706.2,0.00012884,2]
[323706254,1714170642002,-476.7,0.00012884,2]
[323706255,1714170642011,-500.0,0.00012884,2]
[323706256,1714170642020,-500.0,0.00012884,2]
[323706257,1714170642030,-526.18,0.00012884,2]
[323706258,1714170642040,-500.0,0.00012884,2]
[323706259,1714170642051,-580.47,0.00012884,2]
[323706260,1714170642061,-596.53,0.00012884,2]
[323706261,1714170642070,-500.0,0.00012884,2]
[323706262,1714170642079,-500.0,0.00012884,2]
[323706263,1714170642088,-500.0,0.00012884,2]
[323706264,1714170642098,-615.3,0.00012884,2]
[323706265,1714170642108,-597.56,0.00012884,2]
[323706266,1714170642118,-308.203,0.00012885,2]
[323706267,1714170642126,-805.4,0.00012889,2]
[323706268,1714170642135,-805.4,0.0001289,2]
[323706269,1714170642144,-500.0,0.00012899,2]
[323706270,1714170642154,-500.0,0.00012899,2]
[323706271,1714170642163,-332.35,0.00012899,2]
[323706272,1714170642173,-620.2,0.00012899,2]
[323706273,1714170642182,-770.32,0.00012899,2]
[323706274,1714170642192,-150.0,0.00012899,2]
[323706275,1714170642202,-500.0,0.00012899,2]
[323706276,1714170642210,-500.0,0.00012899,2]
[323706277,1714170642220,-379.64430871,0.00012899,2]
[323706278,1714170642230,-196.03231019,0.00012899,2]
[323706279,1714170642240,-500.0,0.00012899,2]
[323706280,1714170642250,-500.0,0.00012899,2]
[323706281,1714170642260,-500.0,0.00012899,2]
[323706282,1714170642270,-500.0,0.00012899,2]
[323706283,1714170642279,-254.05,0.00012899,2]
[323706284,1714170642288,-500.0,0.00012899,2]
[323706285,1714170642297,-500.0,0.00012899,2]
[323706286,1714170642307,-500.0,0.00012899,2]
[323706287,1714170642317,-500.0,0.00012899,2]
[323706288,1714170642326,-641.67,0.00012899,2]